[Event "Titled Tuesday Blitz August 15 Early 2023"]
[White "Ansh M Shah"]
[Black "Kuznetsov, Felix"]
[WhiteFideId "25033379"]
[BlackFideId "34147990"]
[WhiteElo "2526"]
[BlackElo "2700"]
[Result "0-1"]
[Round "6"]
[TimeControl "180+1"]
[Date "2023.08.15"]
[WhiteClock "0:00:08"]
[BlackClock "0:00:07"]
[Board "61"]

1. d4 {[%clk 0:02:50]}  Nf6 {[%clk 0:02:59]} 2. c4 {[%clk 0:02:47]}  e6 {[%clk 0:02:59]} 3. g3 {[%clk 0:02:45]}  d5 {[%clk 0:02:59]} 4. Bg2 {[%clk 0:02:45]}  dxc4 {[%clk 0:02:58]} 5. Nf3 {[%clk 0:02:45]}  Nc6 {[%clk 0:02:58]} 6. O-O {[%clk 0:02:46]}  Rb8 {[%clk 0:02:57]} 7. a4 {[%clk 0:02:45]}  a6 {[%clk 0:02:52]} 8. Nc3 {[%clk 0:02:46]}  Bb4 {[%clk 0:02:50]} 9. e4 {[%clk 0:02:46]}  Bxc3 {[%clk 0:02:48]} 10. bxc3 {[%clk 0:02:47]}  Nxe4 {[%clk 0:02:49]} 11. Qe2 {[%clk 0:02:44]}  Nxc3 {[%clk 0:02:47]} 12. Qxc4 {[%clk 0:02:45]}  Nd5 {[%clk 0:02:47]} 13. Ba3 {[%clk 0:02:43]}  Nce7 {[%clk 0:02:41]} 14. Ne5 {[%clk 0:02:38]}  O-O {[%clk 0:02:38]} 15. Rac1 {[%clk 0:02:00]}  b5 {[%clk 0:02:38]} 16. axb5 {[%clk 0:02:00]}  axb5 {[%clk 0:02:38]} 17. Qc5 {[%clk 0:02:00]}  b4 {[%clk 0:02:37]} 18. Bb2 {[%clk 0:02:00]}  Ba6 {[%clk 0:02:34]} 19. Rfd1 {[%clk 0:01:58]}  Rb5 {[%clk 0:02:33]} 20. Qc2 {[%clk 0:01:54]}  Rb6 {[%clk 0:02:32]} 21. Be4 {[%clk 0:01:50]}  g6 {[%clk 0:02:19]} 22. Ra1 {[%clk 0:01:44]}  Qd6 {[%clk 0:01:58]} 23. h4 {[%clk 0:01:33]}  Nc6 {[%clk 0:01:55]} 24. h5 {[%clk 0:01:26]}  Nxe5 {[%clk 0:01:53]} 25. dxe5 {[%clk 0:01:26]}  Qc6 {[%clk 0:01:48]} 26. Qd2 {[%clk 0:01:25]}  Bb7 {[%clk 0:01:38]} 27. Qg5 {[%clk 0:01:24]}  Qe8 {[%clk 0:01:30]} 28. Bd4 {[%clk 0:01:10]}  Rb5 {[%clk 0:01:01]} 29. Bd3 {[%clk 0:01:00]}  c5 {[%clk 0:01:00]} 30. Bxb5 {[%clk 0:00:50]}  Qxb5 {[%clk 0:01:01]} 31. Be3 {[%clk 0:00:48]}  Qc6 {[%clk 0:00:57]} 32. f3 {[%clk 0:00:41]}  Nc3 {[%clk 0:00:50]} 33. Rf1 {[%clk 0:00:40]}  Qd5 {[%clk 0:00:35]} 34. Qf6 {[%clk 0:00:32]}  Ne4 {[%clk 0:00:29]} 35. fxe4 {[%clk 0:00:25]}  Qxe4 {[%clk 0:00:29]} 36. Kf2 {[%clk 0:00:25]}  Qg2+ {[%clk 0:00:16]} 37. Ke1 {[%clk 0:00:25]}  Qxg3+ {[%clk 0:00:13]} 38. Kd2 {[%clk 0:00:12]}  Qh2+ {[%clk 0:00:13]} 39. Rf2 {[%clk 0:00:12]}  Qxh5 {[%clk 0:00:13]} 40. Raf1 {[%clk 0:00:10]}  Be4 {[%clk 0:00:13]} 41. Bf4 {[%clk 0:00:07]}  Bf5 {[%clk 0:00:12]} 42. Rh2 {[%clk 0:00:08]}  Qg4 {[%clk 0:00:10]} 43. Rff2 {[%clk 0:00:08]}  Ra8 {[%clk 0:00:08]} 44. Rxh7 {[%clk 0:00:08]}  Ra2+ {[%clk 0:00:07]} 45. Ke3 {[%clk 0:00:08]}  Ra3+ {[%clk 0:00:06]} 46. Kd2 {[%clk 0:00:09]}  Rd3+ {[%clk 0:00:05]} 47. Kc1 {[%clk 0:00:07]}  Qd1+ {[%clk 0:00:06]} 48. Kb2 {[%clk 0:00:08]}  Rb3+ {[%clk 0:00:06]} 49. Ka2 {[%clk 0:00:08]}  Qb1# {[%clk 0:00:07]} 0-1


[Site "https://www.chess.com"]

[Event "Titled Tuesday Blitz August 15 Early 2023"]
[White "Aaditya Dhingra"]
[Black "Mammadzada, Gunay"]
[WhiteFideId "25678191"]
[BlackFideId "13403729"]
[WhiteElo "2666"]
[BlackElo "2516"]
[Result "0-1"]
[Round "6"]
[TimeControl "180+1"]
[Date "2023.08.15"]
[WhiteClock "0:00:36"]
[BlackClock "0:01:22"]
[Board "65"]

1. d4 {[%clk 0:02:57]}  d5 {[%clk 0:02:54]} 2. c4 {[%clk 0:02:57]}  c6 {[%clk 0:02:54]} 3. Nc3 {[%clk 0:02:56]}  Nf6 {[%clk 0:02:54]} 4. e3 {[%clk 0:02:56]}  g6 {[%clk 0:02:54]} 5. Nf3 {[%clk 0:02:55]}  Bg7 {[%clk 0:02:54]} 6. Be2 {[%clk 0:02:53]}  O-O {[%clk 0:02:54]} 7. O-O {[%clk 0:02:53]}  Be6 {[%clk 0:02:54]} 8. b3 {[%clk 0:02:53]}  Ne4 {[%clk 0:02:50]} 9. Nxe4 {[%clk 0:02:50]}  dxe4 {[%clk 0:02:50]} 10. Ng5 {[%clk 0:02:50]}  Bf5 {[%clk 0:02:50]} 11. g4 {[%clk 0:02:48]}  e5 {[%clk 0:02:51]} 12. Nxf7 {[%clk 0:02:35]}  Rxf7 {[%clk 0:02:47]} 13. gxf5 {[%clk 0:02:35]}  gxf5 {[%clk 0:02:37]} 14. dxe5 {[%clk 0:02:24]}  Rd7 {[%clk 0:02:37]} 15. Qc2 {[%clk 0:02:18]}  Bxe5 {[%clk 0:02:37]} 16. Bb2 {[%clk 0:01:38]}  Rd2 {[%clk 0:02:28]} 17. Qxd2 {[%clk 0:01:17]}  Qxd2 {[%clk 0:02:27]} 18. Bxe5 {[%clk 0:01:14]}  Qxe2 {[%clk 0:02:26]} 19. Rad1 {[%clk 0:01:11]}  Na6 {[%clk 0:02:09]} 20. Rd7 {[%clk 0:01:07]}  Nc5 {[%clk 0:02:09]} 21. Rg7+ {[%clk 0:01:06]}  Kf8 {[%clk 0:02:08]} 22. Rxh7 {[%clk 0:01:04]}  Nd3 {[%clk 0:02:04]} 23. Bd4 {[%clk 0:00:54]}  c5 {[%clk 0:01:52]} 24. Bf6 {[%clk 0:00:52]}  a5 {[%clk 0:01:29]} 25. h4 {[%clk 0:00:45]}  Ra6 {[%clk 0:01:29]} 26. Rh6 {[%clk 0:00:36]}  Ne1 {[%clk 0:01:22]} 0-1


[Site "https://www.chess.com"]

[Event "Titled Tuesday Blitz August 15 Early 2023"]
[White "Shuvalova, Polina"]
[Black "feuervogel1000000"]
[WhiteFideId "24171760"]
[WhiteElo "2643"]
[BlackElo "2497"]
[Result "0-1"]
[Round "6"]
[TimeControl "180+1"]
[Date "2023.08.15"]
[WhiteClock "0:00:00"]
[BlackClock "0:01:19"]
[Board "69"]

1. f4 {[%clk 0:02:56]}  d5 {[%clk 0:02:59]} 2. Nf3 {[%clk 0:02:54]}  Nf6 {[%clk 0:02:59]} 3. g3 {[%clk 0:02:54]}  c5 {[%clk 0:02:57]} 4. Bg2 {[%clk 0:02:52]}  g6 {[%clk 0:02:57]} 5. O-O {[%clk 0:02:50]}  Bg7 {[%clk 0:02:57]} 6. d3 {[%clk 0:02:50]}  O-O {[%clk 0:02:56]} 7. Nbd2 {[%clk 0:02:51]}  d4 {[%clk 0:02:56]} 8. e4 {[%clk 0:02:49]}  dxe3 {[%clk 0:02:55]} 9. Nc4 {[%clk 0:02:48]}  Nc6 {[%clk 0:02:46]} 10. Bxe3 {[%clk 0:02:42]}  Nd4 {[%clk 0:02:36]} 11. c3 {[%clk 0:02:31]}  Nxf3+ {[%clk 0:02:35]} 12. Bxf3 {[%clk 0:02:28]}  Qc7 {[%clk 0:02:35]} 13. Qe2 {[%clk 0:02:26]}  Rd8 {[%clk 0:02:31]} 14. Rad1 {[%clk 0:02:24]}  Be6 {[%clk 0:02:28]} 15. Qg2 {[%clk 0:02:08]}  Rab8 {[%clk 0:02:23]} 16. Bf2 {[%clk 0:01:56]}  b5 {[%clk 0:02:19]} 17. Ne5 {[%clk 0:01:54]}  Bxa2 {[%clk 0:02:17]} 18. Nc6 {[%clk 0:01:48]}  Bb3 {[%clk 0:02:16]} 19. Rd2 {[%clk 0:01:42]}  c4 {[%clk 0:02:10]} 20. d4 {[%clk 0:01:37]}  e6 {[%clk 0:02:09]} 21. Ra1 {[%clk 0:01:33]}  Nd5 {[%clk 0:02:06]} 22. Nxb8 {[%clk 0:01:27]}  Qxb8 {[%clk 0:02:05]} 23. Re2 {[%clk 0:01:27]}  Qb6 {[%clk 0:02:02]} 24. h4 {[%clk 0:01:12]}  a5 {[%clk 0:01:58]} 25. h5 {[%clk 0:01:11]}  b4 {[%clk 0:01:59]} 26. Be1 {[%clk 0:01:00]}  bxc3 {[%clk 0:01:56]} 27. bxc3 {[%clk 0:01:00]}  Nxc3 {[%clk 0:01:55]} 28. Bxc3 {[%clk 0:00:52]}  Bxd4+ {[%clk 0:01:55]} 29. Kh2 {[%clk 0:00:52]}  Bxc3 {[%clk 0:01:55]} 30. Rh1 {[%clk 0:00:45]}  a4 {[%clk 0:01:51]} 31. hxg6 {[%clk 0:00:44]}  hxg6 {[%clk 0:01:51]} 32. Qh3 {[%clk 0:00:41]}  Bg7 {[%clk 0:01:47]} 33. Kg2 {[%clk 0:00:38]}  c3 {[%clk 0:01:46]} 34. Be4 {[%clk 0:00:36]}  Bc4 {[%clk 0:01:43]} 35. Rf2 {[%clk 0:00:28]}  Qe3 {[%clk 0:01:43]} 36. Bf3 {[%clk 0:00:22]}  Rd2 {[%clk 0:01:42]} 37. Qh7+ {[%clk 0:00:16]}  Kf8 {[%clk 0:01:41]} 38. Rxd2 {[%clk 0:00:17]}  cxd2 {[%clk 0:01:38]} 39. Qh4 {[%clk 0:00:07]}  Qd4 {[%clk 0:01:32]} 40. Rb1 {[%clk 0:00:05]}  Bb3 {[%clk 0:01:27]} 41. Bd1 {[%clk 0:00:05]}  Bf6 {[%clk 0:01:19]} 42. Qh6+ {[%clk 0:00:05]}  Ke7 {[%clk 0:01:20]} 43. Bf3 {[%clk 0:00:00]}  Qd3 {[%clk 0:01:19]} 0-1


[Site "https://www.chess.com"]

[Event "Titled Tuesday Blitz August 15 Early 2023"]
[White "Dias, Paulo"]
[Black "Arias, Juan Cruz"]
[WhiteFideId "1900803"]
[BlackFideId "118540"]
[WhiteElo "2483"]
[BlackElo "2635"]
[Result "0-1"]
[Round "6"]
[TimeControl "180+1"]
[Date "2023.08.15"]
[WhiteClock "0:01:30"]
[BlackClock "0:01:46"]
[Board "71"]

1. e4 {[%clk 0:02:58]}  c6 {[%clk 0:02:58]} 2. d4 {[%clk 0:02:58]}  d5 {[%clk 0:02:59]} 3. e5 {[%clk 0:02:58]}  Bf5 {[%clk 0:02:57]} 4. h4 {[%clk 0:02:58]}  h5 {[%clk 0:02:57]} 5. Bd3 {[%clk 0:02:56]}  Bxd3 {[%clk 0:02:57]} 6. Qxd3 {[%clk 0:02:57]}  Qa5+ {[%clk 0:02:57]} 7. Nd2 {[%clk 0:02:54]}  Qa6 {[%clk 0:02:57]} 8. c4 {[%clk 0:02:54]}  e6 {[%clk 0:02:54]} 9. Ngf3 {[%clk 0:02:53]}  Ne7 {[%clk 0:02:53]} 10. O-O {[%clk 0:02:51]}  Nf5 {[%clk 0:02:54]} 11. b3 {[%clk 0:02:51]}  Be7 {[%clk 0:02:48]} 12. g3 {[%clk 0:02:51]}  O-O {[%clk 0:02:48]} 13. a4 {[%clk 0:02:50]}  Rd8 {[%clk 0:02:48]} 14. Bb2 {[%clk 0:02:47]}  c5 {[%clk 0:02:43]} 15. dxc5 {[%clk 0:02:41]}  Bxc5 {[%clk 0:02:43]} 16. Kg2 {[%clk 0:02:37]}  Nc6 {[%clk 0:02:43]} 17. Qb1 {[%clk 0:02:35]}  dxc4 {[%clk 0:02:36]} 18. Nxc4 {[%clk 0:02:34]}  b5 {[%clk 0:02:33]} 19. Nd6 {[%clk 0:02:09]}  Bxd6 {[%clk 0:02:21]} 20. exd6 {[%clk 0:02:08]}  Rxd6 {[%clk 0:02:21]} 21. Qe4 {[%clk 0:02:05]}  Rad8 {[%clk 0:02:07]} 22. Rfc1 {[%clk 0:02:01]}  b4 {[%clk 0:02:01]} 23. Rc5 {[%clk 0:01:51]}  Nce7 {[%clk 0:01:51]} 24. Qxb4 {[%clk 0:01:40]}  Nd5 {[%clk 0:01:51]} 25. Qe4 {[%clk 0:01:37]}  Qb7 {[%clk 0:01:51]} 26. Rb5 {[%clk 0:01:30]}  Nde3+ {[%clk 0:01:46]} 0-1


[Site "https://www.chess.com"]

[Event "Titled Tuesday Blitz August 15 Early 2023"]
[White "Shuvalov, Evgenij"]
[Black "Eynullayev, Atilla"]
[WhiteFideId "4187237"]
[BlackFideId "13413570"]
[WhiteElo "2476"]
[BlackElo "2632"]
[Result "0-1"]
[Round "6"]
[TimeControl "180+1"]
[Date "2023.08.15"]
[WhiteClock "0:00:00"]
[BlackClock "0:00:19"]
[Board "73"]

1. d4 {[%clk 0:03:00]}  Nf6 {[%clk 0:03:00]} 2. c4 {[%clk 0:02:59]}  e6 {[%clk 0:03:00]} 3. Nc3 {[%clk 0:02:59]}  Bb4 {[%clk 0:03:00]} 4. e3 {[%clk 0:02:58]}  O-O {[%clk 0:03:00]} 5. a3 {[%clk 0:02:57]}  Bxc3+ {[%clk 0:03:00]} 6. bxc3 {[%clk 0:02:58]}  c5 {[%clk 0:03:00]} 7. Ne2 {[%clk 0:02:57]}  b6 {[%clk 0:02:59]} 8. Ng3 {[%clk 0:02:57]}  Nc6 {[%clk 0:03:00]} 9. e4 {[%clk 0:02:56]}  Ne8 {[%clk 0:02:57]} 10. d5 {[%clk 0:02:50]}  Na5 {[%clk 0:02:54]} 11. Bd3 {[%clk 0:02:50]}  Ba6 {[%clk 0:02:54]} 12. Qe2 {[%clk 0:02:50]}  f5 {[%clk 0:02:33]} 13. exf5 {[%clk 0:02:32]}  exd5 {[%clk 0:02:33]} 14. cxd5 {[%clk 0:02:19]}  Bxd3 {[%clk 0:02:34]} 15. Qxd3 {[%clk 0:02:19]}  Qh4 {[%clk 0:02:34]} 16. O-O {[%clk 0:02:13]}  Qc4 {[%clk 0:02:34]} 17. Qxc4 {[%clk 0:02:05]}  Nxc4 {[%clk 0:02:35]} 18. Rd1 {[%clk 0:01:58]}  Ned6 {[%clk 0:02:27]} 19. Ra2 {[%clk 0:01:43]}  Rae8 {[%clk 0:02:25]} 20. Kf1 {[%clk 0:01:41]}  Nxf5 {[%clk 0:02:01]} 21. Nxf5 {[%clk 0:01:41]}  Rxf5 {[%clk 0:02:01]} 22. Re2 {[%clk 0:01:38]}  Rxe2 {[%clk 0:01:38]} 23. Kxe2 {[%clk 0:01:39]}  Kf7 {[%clk 0:01:38]} 24. a4 {[%clk 0:01:26]}  Ke7 {[%clk 0:01:36]} 25. g4 {[%clk 0:01:16]}  Re5+ {[%clk 0:01:35]} 26. Kf1 {[%clk 0:01:07]}  Re4 {[%clk 0:01:25]} 27. f3 {[%clk 0:01:01]}  Re3 {[%clk 0:00:47]} 28. Re1 {[%clk 0:00:29]}  Rxe1+ {[%clk 0:00:46]} 29. Kxe1 {[%clk 0:00:30]}  Kd6 {[%clk 0:00:47]} 30. Ke2 {[%clk 0:00:29]}  Kxd5 {[%clk 0:00:47]} 31. Kd3 {[%clk 0:00:26]}  a6 {[%clk 0:00:43]} 32. f4 {[%clk 0:00:24]}  Nd6 {[%clk 0:00:32]} 33. f5 {[%clk 0:00:20]}  b5 {[%clk 0:00:26]} 34. axb5 {[%clk 0:00:19]}  axb5 {[%clk 0:00:27]} 35. Bf4 {[%clk 0:00:18]}  Ne4 {[%clk 0:00:27]} 36. Be3 {[%clk 0:00:14]}  d6 {[%clk 0:00:25]} 37. h4 {[%clk 0:00:13]}  Ke5 {[%clk 0:00:24]} 38. c4 {[%clk 0:00:10]}  b4 {[%clk 0:00:23]} 39. h5 {[%clk 0:00:09]}  h6 {[%clk 0:00:21]} 40. Bc1 {[%clk 0:00:08]}  Nf6 {[%clk 0:00:19]} 41. Bb2+ {[%clk 0:00:07]}  Kf4 {[%clk 0:00:20]} 42. Bc1+ {[%clk 0:00:03]}  Kxg4 {[%clk 0:00:20]} 43. Be3 {[%clk 0:00:01]}  Kxf5 {[%clk 0:00:21]} 44. Bg1 {[%clk 0:00:02]}  Ne4 {[%clk 0:00:20]} 45. Bh2 {[%clk 0:00:00]}  b3 {[%clk 0:00:19]} 0-1


[Site "https://www.chess.com"]

[Event "Titled Tuesday Blitz August 15 Early 2023"]
[White "Sipila, Vilka"]
[Black "Itkis, Boris"]
[WhiteFideId "505455"]
[BlackFideId "1209167"]
[WhiteElo "2630"]
[BlackElo "2472"]
[Result "1-0"]
[Round "6"]
[TimeControl "180+1"]
[Date "2023.08.15"]
[WhiteClock "0:02:23"]
[BlackClock "0:01:57"]
[Board "74"]

1. d4 {[%clk 0:03:00]}  d5 {[%clk 0:02:59]} 2. Bf4 {[%clk 0:03:00]}  Nf6 {[%clk 0:02:59]} 3. Nf3 {[%clk 0:03:00]}  c5 {[%clk 0:02:59]} 4. e3 {[%clk 0:02:59]}  Nc6 {[%clk 0:02:59]} 5. Nbd2 {[%clk 0:02:59]}  Nh5 {[%clk 0:03:00]} 6. Bg5 {[%clk 0:02:50]}  h6 {[%clk 0:02:58]} 7. Bh4 {[%clk 0:02:47]}  g5 {[%clk 0:02:53]} 8. Ne5 {[%clk 0:02:37]}  Nxe5 {[%clk 0:02:46]} 9. dxe5 {[%clk 0:02:38]}  Ng7 {[%clk 0:02:39]} 10. Bg3 {[%clk 0:02:37]}  Ne6 {[%clk 0:02:29]} 11. h4 {[%clk 0:02:33]}  Bg7 {[%clk 0:02:27]} 12. hxg5 {[%clk 0:02:32]}  hxg5 {[%clk 0:02:28]} 13. Rxh8+ {[%clk 0:02:31]}  Bxh8 {[%clk 0:02:29]} 14. Qh5 {[%clk 0:02:31]}  Bg7 {[%clk 0:02:26]} 15. O-O-O {[%clk 0:02:31]}  Qc7 {[%clk 0:02:19]} 16. Nf3 {[%clk 0:02:30]}  d4 {[%clk 0:02:12]} 17. Nxg5 {[%clk 0:02:26]}  Nxg5 {[%clk 0:02:03]} 18. Qxg5 {[%clk 0:02:27]}  Bf8 {[%clk 0:01:57]} 19. Bb5+ {[%clk 0:02:23]} 1-0


[Site "https://www.chess.com"]

[Event "Titled Tuesday Blitz August 15 Early 2023"]
[White "Molenda, Marcin"]
[Black "Kuzhilniy, Oleksandr"]
[WhiteFideId "1173065"]
[BlackFideId "34110500"]
[WhiteElo "2468"]
[BlackElo "2627"]
[Result "1-0"]
[Round "6"]
[TimeControl "180+1"]
[Date "2023.08.15"]
[WhiteClock "0:00:53"]
[BlackClock "0:00:16"]
[Board "75"]

1. e4 {[%clk 0:03:00]}  e6 {[%clk 0:02:56]} 2. Nf3 {[%clk 0:02:56]}  b6 {[%clk 0:02:50]} 3. d4 {[%clk 0:02:54]}  Bb7 {[%clk 0:02:51]} 4. Bd3 {[%clk 0:02:54]}  c5 {[%clk 0:02:48]} 5. c3 {[%clk 0:02:52]}  Nf6 {[%clk 0:02:46]} 6. e5 {[%clk 0:02:52]}  Ne4 {[%clk 0:02:41]} 7. Nbd2 {[%clk 0:02:43]}  Nxd2 {[%clk 0:02:41]} 8. Bxd2 {[%clk 0:02:42]}  cxd4 {[%clk 0:02:35]} 9. cxd4 {[%clk 0:02:43]}  d6 {[%clk 0:02:35]} 10. O-O {[%clk 0:02:38]}  Nd7 {[%clk 0:02:36]} 11. Re1 {[%clk 0:02:15]}  Be7 {[%clk 0:02:34]} 12. exd6 {[%clk 0:02:12]}  Bxd6 {[%clk 0:02:35]} 13. Ng5 {[%clk 0:02:11]}  Qe7 {[%clk 0:01:43]} 14. Qh5 {[%clk 0:02:05]}  Nf6 {[%clk 0:01:38]} 15. Bb5+ {[%clk 0:01:57]}  Kf8 {[%clk 0:01:35]} 16. Qh3 {[%clk 0:01:54]}  h6 {[%clk 0:01:32]} 17. Bc4 {[%clk 0:01:50]}  Bd5 {[%clk 0:01:26]} 18. Bxd5 {[%clk 0:01:43]}  Nxd5 {[%clk 0:01:27]} 19. Nxe6+ {[%clk 0:01:41]}  fxe6 {[%clk 0:01:26]} 20. Rxe6 {[%clk 0:01:42]}  Qd8 {[%clk 0:00:37]} 21. Rae1 {[%clk 0:01:27]}  Nf6 {[%clk 0:00:26]} 22. Qf3 {[%clk 0:01:13]}  Kg8 {[%clk 0:00:20]} 23. Rxd6 {[%clk 0:01:09]}  Qxd6 {[%clk 0:00:21]} 24. Qxa8+ {[%clk 0:01:09]}  Kh7 {[%clk 0:00:22]} 25. Qxa7 {[%clk 0:01:07]}  Qxd4 {[%clk 0:00:20]} 26. Bc3 {[%clk 0:01:07]}  Qd6 {[%clk 0:00:18]} 27. h3 {[%clk 0:00:56]}  Nd5 {[%clk 0:00:16]} 28. Qxg7# {[%clk 0:00:53]} 1-0


[Site "https://www.chess.com"]

[Event "Titled Tuesday Blitz August 15 Early 2023"]
[White "Rosenberg, Evan S"]
[Black "Ezat, Mohamed"]
[WhiteFideId "2019299"]
[BlackFideId "10600906"]
[WhiteElo "2459"]
[BlackElo "2621"]
[Result "0-1"]
[Round "6"]
[TimeControl "180+1"]
[Date "2023.08.15"]
[WhiteClock "0:00:31"]
[BlackClock "0:01:37"]
[Board "77"]

1. d4 {[%clk 0:03:00]}  Nf6 {[%clk 0:02:59]} 2. Nf3 {[%clk 0:03:01]}  d5 {[%clk 0:02:58]} 3. c3 {[%clk 0:03:00]}  Bf5 {[%clk 0:02:53]} 4. Qb3 {[%clk 0:02:59]}  Qc8 {[%clk 0:02:50]} 5. c4 {[%clk 0:02:58]}  e6 {[%clk 0:02:45]} 6. Nc3 {[%clk 0:02:55]}  c6 {[%clk 0:02:44]} 7. Bf4 {[%clk 0:02:53]}  Be7 {[%clk 0:02:41]} 8. Rc1 {[%clk 0:02:50]}  O-O {[%clk 0:02:41]} 9. h3 {[%clk 0:02:49]}  Nbd7 {[%clk 0:02:38]} 10. cxd5 {[%clk 0:02:48]}  Nxd5 {[%clk 0:02:33]} 11. Nxd5 {[%clk 0:02:45]}  exd5 {[%clk 0:02:32]} 12. e3 {[%clk 0:02:40]}  a5 {[%clk 0:02:32]} 13. a3 {[%clk 0:02:38]}  a4 {[%clk 0:02:30]} 14. Qd1 {[%clk 0:02:20]}  Nf6 {[%clk 0:02:30]} 15. Bd3 {[%clk 0:02:17]}  Bxd3 {[%clk 0:02:29]} 16. Qxd3 {[%clk 0:02:17]}  Ne4 {[%clk 0:02:29]} 17. O-O {[%clk 0:02:17]}  f5 {[%clk 0:02:26]} 18. Ne5 {[%clk 0:02:07]}  Qe6 {[%clk 0:02:25]} 19. f3 {[%clk 0:02:04]}  Nd6 {[%clk 0:02:24]} 20. Rfe1 {[%clk 0:01:46]}  Bh4 {[%clk 0:02:22]} 21. Re2 {[%clk 0:01:42]}  Ra5 {[%clk 0:02:10]} 22. Qc3 {[%clk 0:01:11]}  Rb5 {[%clk 0:02:05]} 23. Qc2 {[%clk 0:01:05]}  Ra8 {[%clk 0:02:02]} 24. Nxc6 {[%clk 0:00:57]}  bxc6 {[%clk 0:01:58]} 25. Qxc6 {[%clk 0:00:58]}  Rc8 {[%clk 0:01:52]} 26. Bxd6 {[%clk 0:00:44]}  Rxc6 {[%clk 0:01:51]} 27. Rxc6 {[%clk 0:00:31]}  h6 {[%clk 0:01:37]} 0-1


[Site "https://www.chess.com"]

[Event "Titled Tuesday Blitz August 15 Early 2023"]
[White "Sydoryka, Vladyslav"]
[Black "Bazilius, Augustinas"]
[WhiteFideId "14145928"]
[BlackFideId "12832251"]
[WhiteElo "2616"]
[BlackElo "2454"]
[Result "1/2-1/2"]
[Round "6"]
[TimeControl "180+1"]
[Date "2023.08.15"]
[WhiteClock "0:00:40"]
[BlackClock "0:00:17"]
[Board "78"]

1. c4 {[%clk 0:02:53]}  Nf6 {[%clk 0:02:56]} 2. g3 {[%clk 0:02:53]}  c5 {[%clk 0:02:51]} 3. Bg2 {[%clk 0:02:52]}  d5 {[%clk 0:02:51]} 4. cxd5 {[%clk 0:02:52]}  Nxd5 {[%clk 0:02:52]} 5. Nc3 {[%clk 0:02:51]}  Nc7 {[%clk 0:02:52]} 6. Qa4+ {[%clk 0:02:51]}  Nd7 {[%clk 0:02:36]} 7. Nf3 {[%clk 0:02:44]}  a6 {[%clk 0:02:24]} 8. Qc2 {[%clk 0:02:27]}  b5 {[%clk 0:02:20]} 9. d4 {[%clk 0:02:25]}  Bb7 {[%clk 0:02:15]} 10. dxc5 {[%clk 0:02:19]}  Nxc5 {[%clk 0:02:16]} 11. Nxb5 {[%clk 0:02:03]}  Nxb5 {[%clk 0:02:01]} 12. Qxc5 {[%clk 0:02:02]}  e6 {[%clk 0:02:02]} 13. Qc2 {[%clk 0:02:00]}  Rc8 {[%clk 0:02:01]} 14. Qa4 {[%clk 0:01:58]}  Be7 {[%clk 0:01:56]} 15. O-O {[%clk 0:01:56]}  O-O {[%clk 0:01:55]} 16. Rd1 {[%clk 0:01:56]}  Qb6 {[%clk 0:01:48]} 17. Be3 {[%clk 0:01:54]}  Bc5 {[%clk 0:01:48]} 18. Bxc5 {[%clk 0:01:55]}  Rxc5 {[%clk 0:01:46]} 19. Rac1 {[%clk 0:01:47]}  Rfc8 {[%clk 0:01:32]} 20. Rxc5 {[%clk 0:01:47]}  Qxc5 {[%clk 0:01:33]} 21. h4 {[%clk 0:01:37]}  h5 {[%clk 0:01:29]} 22. Qf4 {[%clk 0:01:30]}  Qc2 {[%clk 0:01:25]} 23. Rd7 {[%clk 0:01:21]}  Qc1+ {[%clk 0:01:19]} 24. Qxc1 {[%clk 0:01:20]}  Rxc1+ {[%clk 0:01:20]} 25. Kh2 {[%clk 0:01:21]}  Bxf3 {[%clk 0:01:03]} 26. Bxf3 {[%clk 0:01:22]}  g6 {[%clk 0:01:04]} 27. Rd8+ {[%clk 0:01:21]}  Kg7 {[%clk 0:01:02]} 28. Ra8 {[%clk 0:01:22]}  Nd4 {[%clk 0:00:57]} 29. Rxa6 {[%clk 0:01:16]}  Nxf3+ {[%clk 0:00:57]} 30. exf3 {[%clk 0:01:17]}  Rc2 {[%clk 0:00:55]} 31. b4 {[%clk 0:01:17]}  Rxf2+ {[%clk 0:00:45]} 32. Kh3 {[%clk 0:01:15]}  Rb2 {[%clk 0:00:43]} 33. a3 {[%clk 0:01:13]}  Kf6 {[%clk 0:00:43]} 34. Ra5 {[%clk 0:01:13]}  Rb3 {[%clk 0:00:39]} 35. f4 {[%clk 0:00:55]}  Rb2 {[%clk 0:00:34]} 36. b5 {[%clk 0:00:54]}  Kf5 {[%clk 0:00:31]} 37. b6+ {[%clk 0:00:45]}  Ke4 {[%clk 0:00:30]} 38. Ra6 {[%clk 0:00:46]}  Kf3 {[%clk 0:00:26]} 39. a4 {[%clk 0:00:44]}  Rb1 {[%clk 0:00:17]} 40. Kh2 {[%clk 0:00:38]}  Rb2+ {[%clk 0:00:17]} 41. Kh3 {[%clk 0:00:39]}  Rb1 {[%clk 0:00:17]} 42. Kh2 {[%clk 0:00:39]}  Rb2+ {[%clk 0:00:17]} 43. Kh3 {[%clk 0:00:40]} 1/2-1/2


[Site "https://www.chess.com"]

[Event "Titled Tuesday Blitz August 15 Early 2023"]
[White "dr_tatiana"]
[Black "SmirnovAlexandrA"]
[WhiteElo "2454"]
[BlackElo "2615"]
[Result "0-1"]
[Round "6"]
[TimeControl "180+1"]
[Date "2023.08.15"]
[WhiteClock "0:00:00"]
[BlackClock "0:00:09"]
[Board "79"]

1. e4 {[%clk 0:03:00]}  d5 {[%clk 0:02:47]} 2. exd5 {[%clk 0:03:00]}  Qxd5 {[%clk 0:02:47]} 3. Nc3 {[%clk 0:03:00]}  Qd6 {[%clk 0:02:48]} 4. d4 {[%clk 0:02:54]}  Nf6 {[%clk 0:02:48]} 5. Nf3 {[%clk 0:02:45]}  a6 {[%clk 0:02:49]} 6. g3 {[%clk 0:02:45]}  Bg4 {[%clk 0:02:44]} 7. Bg2 {[%clk 0:02:42]}  Nc6 {[%clk 0:02:44]} 8. Bf4 {[%clk 0:02:42]}  Qb4 {[%clk 0:02:41]} 9. O-O {[%clk 0:02:05]}  O-O-O {[%clk 0:02:41]} 10. a3 {[%clk 0:01:06]}  Qc4 {[%clk 0:02:40]} 11. h3 {[%clk 0:01:06]}  Bxf3 {[%clk 0:02:30]} 12. Qxf3 {[%clk 0:01:07]}  Rxd4 {[%clk 0:02:19]} 13. b3 {[%clk 0:00:51]}  Qc5 {[%clk 0:02:15]} 14. b4 {[%clk 0:00:38]}  Qc4 {[%clk 0:02:11]} 15. b5 {[%clk 0:00:32]}  axb5 {[%clk 0:02:08]} 16. Rab1 {[%clk 0:00:22]}  e6 {[%clk 0:01:43]} 17. Nxb5 {[%clk 0:00:20]}  Nd5 {[%clk 0:01:26]} 18. Nxd4 {[%clk 0:00:18]}  Nxd4 {[%clk 0:01:23]} 19. Qe4 {[%clk 0:00:17]}  Ne2+ {[%clk 0:01:04]} 20. Kh1 {[%clk 0:00:15]}  Qxe4 {[%clk 0:01:04]} 21. Bxe4 {[%clk 0:00:15]}  Nec3 {[%clk 0:01:05]} 22. Rbe1 {[%clk 0:00:13]}  Nxf4 {[%clk 0:00:57]} 23. gxf4 {[%clk 0:00:13]}  g6 {[%clk 0:00:58]} 24. Re3 {[%clk 0:00:11]}  Bg7 {[%clk 0:00:55]} 25. Bg2 {[%clk 0:00:11]}  c6 {[%clk 0:00:54]} 26. Rd3 {[%clk 0:00:10]}  Kc7 {[%clk 0:00:50]} 27. Re1 {[%clk 0:00:08]}  Ra8 {[%clk 0:00:44]} 28. Rg3 {[%clk 0:00:08]}  Rxa3 {[%clk 0:00:43]} 29. f5 {[%clk 0:00:08]}  Kd6 {[%clk 0:00:28]} 30. fxe6 {[%clk 0:00:08]}  fxe6 {[%clk 0:00:28]} 31. h4 {[%clk 0:00:08]}  Ra5 {[%clk 0:00:25]} 32. Rd3+ {[%clk 0:00:08]}  Ke7 {[%clk 0:00:24]} 33. Bh3 {[%clk 0:00:08]}  Re5 {[%clk 0:00:19]} 34. Ree3 {[%clk 0:00:06]}  Rxe3 {[%clk 0:00:15]} 35. Rxe3 {[%clk 0:00:06]}  Nd5 {[%clk 0:00:14]} 36. Rxe6+ {[%clk 0:00:06]}  Kf7 {[%clk 0:00:15]} 37. Rd6 {[%clk 0:00:06]}  Nf6 {[%clk 0:00:12]} 38. Bg2 {[%clk 0:00:04]}  Bf8 {[%clk 0:00:12]} 39. Rd8 {[%clk 0:00:03]}  Bc5 {[%clk 0:00:13]} 40. Rb8 {[%clk 0:00:03]}  Bxf2 {[%clk 0:00:13]} 41. Rxb7+ {[%clk 0:00:03]}  Kg8 {[%clk 0:00:13]} 42. h5 {[%clk 0:00:03]}  Nxh5 {[%clk 0:00:13]} 43. Bxc6 {[%clk 0:00:04]}  Nf4 {[%clk 0:00:10]} 44. Be4 {[%clk 0:00:02]}  h5 {[%clk 0:00:09]} 45. c4 {[%clk 0:00:00]}  g5 {[%clk 0:00:09]} 0-1


[Site "https://www.chess.com"]